Cogmind - Beta 10.2 @@@ ROGUE MODE // 2021.03.28 @ 13:31:30 Player: onyhow Result: Destroyed by S-27 Virus with Autogun Performance ------------- Evolutions (3) 1500 Regions Visited (8) 1600 Robots Destroyed (142) 710 Value Destroyed (4527) 4527 Prototype IDs (12) 240 Alien Tech Used (0) 0 Bonus (947) 947 TOTAL SCORE: 9524 Bonus ------- High Alert Combat Kills 137 Follower Combat Kills 110 Entered Garrisons 200 Used RIF Installer 500 Cogmind --------- Core Integrity 0/700 Matter 255/300 Energy 160/160 System Corruption 2% Temperature Cool (0) Movement Walking (150) Ox1 Location -7/Garrison Parts ------- > --- POWER (1) -------- Light Nuclear Core > --- PROPULSION (4) --- Improved Carbon-fiber Leg > --- UTILITY (6) ------ Improved Heat Sink Medium Storage Unit Medium Storage Unit Advanced Signal Interpreter Improved Light Armor Plating > --- WEAPON (2) ------- Plasma Cannon Flak Gun > --- INVENTORY (12) --- Light Nuclear Core Improved Carbon-fiber Leg Improved Heat Sink Improved Heat Sink Long-range Sensor Array Layered Light Armor Plating Improved Field Recycling Unit (25) Heavy Ion Cannon Gauss Rifle Gauss Rifle Advanced Assault Cannon Peak State ------------ > --- POWER ------------ Improved Deuterium Engine > --- PROPULSION ------- Improved Carbon-fiber Leg Improved Carbon-fiber Leg Improved Carbon-fiber Leg Improved Carbon-fiber Leg > --- UTILITY ---------- Improved Heat Sink Medium Storage Unit Medium Storage Unit Advanced Signal Interpreter Improved Medium Armor Plating Hacking Suite > --- WEAPON ----------- Improved Heavy Machine Gun Improved Heavy Machine Gun > --- INVENTORY -------- Micro Nuclear Core Improved Carbon-fiber Leg Improved Carbon-fiber Leg Improved Carbon-fiber Leg Improved Heat Sink Field Recycling Unit High-powered Shotgun Flak Gun Improved Heavy Machine Gun Rocket Launcher Power Maul [Rating: 51] Favorites ----------- Power Cooled Ion Engine Engine Cooled Ion Engine Power Core Micro Nuclear Core Propulsion Aluminum Leg Leg Aluminum Leg Utility Medium Storage Unit Device Improved Heat Sink Storage Medium Storage Unit Processor Advanced Signal Interpreter Hackware Hacking Suite Protection Hardened Medium Armor Plating Weapon Axe Energy Gun Small Laser Energy Cannon Plasma Cannon Ballistic Gun Flak Gun Launcher Grenade Launcher Impact Weapon Power Maul Slashing Weapon Axe Build | -11 -10 -9 -9 -8 -7 -7 -7 -7 ------- Run | Scr Mat Mat Sto Mat Fac Was Fac Gar Slots Evolved 6 | . . 2 . 2 2 . . . Power . | . . . . . . . . . Propulsion 2 | . . . . 1 1 . . . Utility 4 | . . 2 . 1 1 . . . Weapon . | . . . . . . . . . Parts Attached 139 | 6 9 34 22 13 . 1 50 4 Power 18 | 1 1 6 3 1 . . 5 1 Engine 16 | 1 1 6 3 1 . . 4 . Core 2 | . . . . . . . 1 1 Reactor . | . . . . . . . . . Propulsion 31 | 2 2 5 4 4 . 1 12 1 Treads . | . . . . . . . . . Leg 31 | 2 2 5 4 4 . 1 12 1 Wheel . | . . . . . . . . . Hover . | . . . . . . . . . Flight . | . . . . . . . . . Utility 55 | 1 2 13 10 8 . . 20 1 Device 19 | . . 4 2 3 . . 10 . Storage 6 | 1 2 1 1 . . . 1 . Processor 1 | . . . . 1 . . . . Hackware 1 | . . . . . . . 1 . Protection 28 | . . 8 7 4 . . 8 1 Artifact . | . . . . . . . . . Weapon 35 | 2 4 10 5 . . . 13 1 Energy Gun 7 | 2 3 1 1 . . . . . Energy Cannon 4 | . . 1 . . . . 2 1 Ballistic Gun 14 | . . 4 1 . . . 9 . Ballistic Cannon . | . . . . . . . . . Launcher 1 | . 1 . . . . . . . Special Weapon . | . . . . . . . . . Impact Weapon 1 | . . . . . . . 1 . Slashing Weapon 8 | . . 4 3 . . . 1 . Piercing Weapon . | . . . . . . . . . Special Melee Weapon . | . . . . . . . . . Unidentified Prototypes 2 | . . . 2 . . . . . Parts Lost 28 | . 2 6 3 5 . 4 3 5 Power 3 | . . 2 . . . 1 . . Propulsion 14 | . 1 2 2 2 . 1 3 3 Utility 6 | . . . 1 3 . 1 . 1 Weapon 5 | . 1 2 . . . 1 . 1 Highest Loss Streak 4 | . 2 3 2 3 . 4 1 4 Average Slot Usage (%) 95 | . 97 96 99 97 84 76 92 98 Engine 9 | . 14 10 11 9 7 5 5 4 Leg 24 | . 28 21 21 26 23 22 26 28 Device 5 | . . 5 2 10 7 4 6 7 Storage 19 | . 25 22 22 18 15 15 14 15 Processor 2 | . . . . 2 7 7 7 7 Hackware 1 | . . . . . . . 5 . Protection 10 | . . 14 19 13 7 4 5 15 Energy Gun 3 | . 26 2 . . . . . . Ballistic Gun 5 | . . 7 . . . . 11 14 Slashing Weapon 9 | . . 11 21 18 15 13 . . Naked Turns . | . . . . . . . . . Heaviest Build 54 | 11 21 42 44 54 39 39 50 40 Greatest Support 72 | 20 20 20 20 30 30 40 72 72 Greatest Overweight (x) 10 | 2 1 3 4 2 1 1 10 . Average Overweight (x) . | . . 1 1 1 1 . . . Largest Inventory Capacity 12 | 6 10 12 12 12 12 12 12 12 Average Capacity 11 | 5 8 11 12 12 12 12 11 12 Most Carried 12 | 6 10 12 12 12 12 12 12 12 Average Carried 10 | 2 7 10 11 11 11 11 11 11 Final Capacity 12 | 6 10 12 12 12 12 12 12 12 Final Carried 12 | 6 10 12 12 12 12 11 12 11 Class Distribution -------------------- 78% | Mutant 21% | Scavenger-Mutant Dominant Class ---------------- Mutant | -10/Materials Mutant | -9/Materials Mutant | -9/Storage Mutant | -8/Materials Mutant | -7/Factory Scavenger-Mutant | -7/Waste Mutant | -7/Factory Scavenger-Mutant | -7/Garrison Resources | -11 -10 -9 -9 -8 -7 -7 -7 -7 ----------- Run | Scr Mat Mat Sto Mat Fac Was Fac Gar Matter Collected 2530 | 260 105 564 195 135 . . 1091 180 Remotely . | . . . . . . . . . Salvage Created 5892 | 71 712 1472 995 818 . . 1405 419 Parts 315 | 3 34 74 66 53 . . 64 21 Haulers Intercepted . | . . . . . . . . . Recyclers Shooed 14 | . 3 5 1 1 . . 4 . Parts Field Recycled 21 | . . . . . . . 21 . Retrieved Matter 177 | . . . . . . . 177 . Parts Self-Destructed . | . . . . . . . . . Prevented . | . . . . . . . . . Kills | -11 -10 -9 -9 -8 -7 -7 -7 -7 ------- Run | Scr Mat Mat Sto Mat Fac Was Fac Gar Combat Hostiles Destroyed 114 | . 12 27 18 23 . . 24 10 Melee 54 | . . 13 18 23 . . . . Guns 53 | . 11 12 . . . . 20 10 Cannons 5 | . . 2 . . . . 3 . AOE 1 | . 1 . . . . . . . Classes Destroyed 13 | 1 4 3 . . . . 4 1 Worker 4 | . . 1 1 . . . 2 . Tunneler 1 | . . . . . . . 1 . Recycler 15 | 1 4 4 2 2 . . 2 . Operator 2 | . 2 . . . . . . . Watcher 6 | . 1 1 . 2 . . 2 . Swarmer 27 | . 6 3 . 14 . . . 4 Grunt 50 | . 6 14 7 5 . . 14 4 Brawler 1 | . . 1 . . . . . . Duelist 1 | . . . . . . . . 1 Sentry 29 | . . 9 11 4 . . 5 . Demolisher 1 | . . . . . . . 1 . Hunter 1 | . . . . . . . 1 . Programmer 4 | . . . . . . . 3 1 Best Kill Streak 7 | 1 3 3 3 5 . . 6 7 Combat Bots Only 7 | . 3 3 3 4 . . 4 7 Max Kills in Single Turn 2 | 1 2 1 1 1 . . 1 1 Gunslinging 1 | . 1 . . . . . . . Exploded 1 | . 1 . . . . . . . Melee 1 | . . 1 1 1 . . . . Uniques/NPCs Destroyed . | . . . . . . . . . Combat | -11 -10 -9 -9 -8 -7 -7 -7 -7 -------- Run | Scr Mat Mat Sto Mat Fac Was Fac Gar Damage Taken 7936 | . 440 1700 810 1279 . 130 2429 1148 Core 1262 | . 61 279 63 159 . . 554 146 Absorbed by Shields . | . . . . . . . . . Core Remaining (%) 65 | 100 75 . 14 71 . . . . Volleys Fired 237 | 2 49 59 . . . . 103 24 Largest 2 | 2 2 2 . . . . 2 2 Hottest 108 | 80 90 90 . . . . 108 108 Shots Fired 453 | 4 91 114 . . . . 197 47 Gun 412 | 4 89 104 . . . . 173 42 Cannon 39 | . . 10 . . . . 24 5 Launcher 2 | . 2 . . . . . . . Special . | . . . . . . . . . Kinetic 294 | . . 79 . . . . 173 42 Thermal 130 | 4 73 24 . . . . 24 5 Explosive 2 | . 2 . . . . . . . Electromagnetic 27 | . 16 11 . . . . . . Robot Hit Streak 22 | 2 9 22 . . . . 12 8 Robot Miss Streak 8 | . 2 4 . . . . 6 8 Penetration Max . | . . . . . . . . . Secondary Targets 6 | . 1 . . . . . 2 3 Max Gunslinging Chain 1 | . 1 . . . . . 1 1 Shots Hit Robots 521 | 2 63 127 52 68 . . 167 42 Core Hits 272 | 2 29 60 21 28 . . 84 48 Critical Hits 6 | . . . 1 4 . . 1 . Critical Kills 2 | . . . 1 1 . . . . Critical Parts Destroyed 4 | . . . . 3 . . 1 . Melee Attacks 257 | . . 62 73 105 . . 17 . Impact 6 | . . . . . . . 6 . Slashing 251 | . . 62 73 105 . . 11 . Piercing . | . . . . . . . . . Sneak Attacks 16 | . . 7 4 5 . . . . Combat Hostiles . | . . . . . . . . . Follow-up Attacks 26 | . . 5 6 9 . . 6 . Damage Inflicted 12966 | 22 777 3136 2049 2708 . . 3490 784 Guns 5099 | 22 722 1040 . . . . 2610 705 Cannons 738 | . . 176 . . . . 483 79 Explosions 55 | . 55 . . . . . . . Melee 7074 | . . 1920 2049 2708 . . 397 . Ramming . | . . . . . . . . . Kinetic 4139 | . . 824 . . . . 2610 705 Thermal 1446 | 22 583 279 . . . . 483 79 Explosive . | . . . . . . . . . Electromagnetic 307 | . 194 113 . . . . . . Impact 190 | . . . . . . . 190 . Slashing 6884 | . . 1920 2049 2708 . . 207 . Piercing . | . . . . . . . . . Highest Corruption 2 | . 1 . . . . . 1 2 Average Corruption 1 | . 1 . . . . . 1 1 Corruption Purged . | . . . . . . . . . Effects 10 | . 1 . . . . . 5 4 Message Errors 3 | . 1 . . . . . 2 . Data Loss (minor) 2 | . . . . . . . 1 1 Targeting Errors 5 | . . . . . . . 2 3 Overload Shots . | . . . . . . . . . Overflow Damage 1018 | . 7 361 204 418 . . 28 . Projectiles 11 | . . 11 . . . . . . Explosions 7 | . 7 . . . . . . . Melee 1000 | . . 350 204 418 . . 28 . Knockbacks 3 | . . . . . . . 3 . Impact 3 | . . . . . . . 3 . Kinetic . | . . . . . . . . . Secondary . | . . . . . . . . . Self-Inflicted Damage 49 | . 49 . . . . . . . Shots 1 | . 1 . . . . . . . Rammed . | . . . . . . . . . Targets Rammed . | . . . . . . . . . Kicked . | . . . . . . . . . Crushed . | . . . . . . . . . Highest Temperature 174 | 36 174 84 . 5 . . 44 8 Average Temperature 36 | 20 50 25 . 3 . . 9 8 Received Heat Transfer 2409 | . 144 597 276 324 . . 906 162 Siege Activations . | . . . . . . . . . Robots Corrupted . | . . . . . . . . . Combat Hostiles . | . . . . . . . . . Parts Fried 2 | . 1 1 . . . . . . Impact Corruptions 1 | . . . . . . . 1 . Robots Melted . | . . . . . . . . . Combat Hostiles . | . . . . . . . . . Parts Melted 5 | . 3 1 . . . . 1 . Heat Transferred 3139 | 50 1323 666 . . . . 950 150 Parts Sabotaged . | . . . . . . . . . Parts Stolen . | . . . . . . . . . Parts Stripped . | . . . . . . . . . Power Chain Reactions 2 | . 2 . . . . . . . Missiles Intercepted . | . . . . . . . . . Alert | -11 -10 -9 -9 -8 -7 -7 -7 -7 ------- Run | Scr Mat Mat Sto Mat Fac Was Fac Gar Peak Influence 556 | 5 322 359 336 485 190 111 502 556 Initial 351 | . 3 61 151 86 178 66 60 351 Average 186 | 2 122 144 190 243 184 91 211 443 Maximum Alert Level 2 | . 1 1 1 2 . . 2 2 Low Security (%) 59 | 100 91 69 49 47 100 100 45 . Level 1 36 | . 8 30 50 34 . . 52 41 Level 2 4 | . . . . 18 . . 2 58 Level 3 . | . . . . . . . . . Level 4 . | . . . . . . . . . Level 5 . | . . . . . . . . . High Security . | . . . . . . . . . Max Security . | . . . . . . . . . Squads Dispatched 20 | . 4 3 1 4 . . 8 . Investigation 5 | . 2 1 . 1 . . 1 . Extermination 3 | . . . . . . . 3 . Reinforcement 11 | . 2 2 1 3 . . 3 . Assault . | . . . . . . . . . Garrison 1 | . . . . . . . 1 . Intercept . | . . . . . . . . . Construction Impeded 1 | . . . . . . . 1 . Haulers Reinforced 1 | . . . . . . . 1 . Stealth | -11 -10 -9 -9 -8 -7 -7 -7 -7 --------- Run | Scr Mat Mat Sto Mat Fac Was Fac Gar Distress Signals 13 | . . 1 2 8 . . 2 . Communications Jammed . | . . . . . . . . . Distress Signals . | . . . . . . . . . Times Spotted 201 | . 22 48 28 45 . 6 39 13 Peak Tracking Total 7 | . 3 4 6 7 . 6 4 6 Tactical Retreats 17 | . 2 3 3 6 . 1 2 . Traps | -11 -10 -9 -9 -8 -7 -7 -7 -7 ------- Run | Scr Mat Mat Sto Mat Fac Was Fac Gar Traps Triggered 12 | . 3 . 5 . 1 . 3 . Indirectly . | . . . . . . . . . Trap Hack Attempts . | . . . . . . . . . Triggered . | . . . . . . . . . Disarmed 10 | . . 10 . . . . . . Reprogrammed 4 | . . 4 . . . . . . Reused 1 | . . 1 . . . . . . Traps Extracted . | . . . . . . . . . Installed . | . . . . . . . . . Triggered 1 | . . 1 . . . . . . Machines | -11 -10 -9 -9 -8 -7 -7 -7 -7 ---------- Run | Scr Mat Mat Sto Mat Fac Was Fac Gar Machines Disabled 7 | . 2 . 2 . . . 3 . Max in Single Turn 2 | . 2 . 1 . . . 2 . Garrison Access 2 | . . . . 1 . . 1 . Machines Sabotaged . | . . . . . . . . . Garrisons Compromised . | . . . . . . . . . Overloaded Fab Kills . | . . . . . . . . . Fab Network Shutdowns . | . . . . . . . . . Hacking | -11 -10 -9 -9 -8 -7 -7 -7 -7 --------- Run | Scr Mat Mat Sto Mat Fac Was Fac Gar Machines Accessed 46 | . 6 12 9 5 2 . 12 . Terminals 32 | . 6 10 8 3 . . 5 . Fabricators 1 | . . . . . . . 1 . Repair Stations 4 | . . . . 1 . . 3 . Recycling Units . | . . . . . . . . . Scanalyzers 4 | . . 2 . . 1 . 1 . Garrison Access 5 | . . . 1 1 1 . 2 . Total Hacks 139 | . 17 41 26 14 4 . 37 . Successful 68 | . 8 19 13 8 1 . 19 . Failed 71 | . 9 22 13 6 3 . 18 . Catastrophic 11 | . . 6 2 1 . . 2 . Database Lockouts . | . . . . . . . . . Manual 44 | . 2 22 8 4 . . 8 . Terminals 99 | . 17 34 23 9 . . 16 . Fabricators 3 | . . . . . . . 3 . Repair Stations 13 | . . . . 3 . . 10 . Recycling Units . | . . . . . . . . . Scanalyzers 13 | . . 7 . . 2 . 4 . Garrison Access 11 | . . . 3 2 2 . 4 . Terminal Hacks 46 | . 8 13 13 5 . . 7 . Record 7 | . 1 1 1 1 . . 3 . Part Schematic 8 | . . 2 5 . . . 1 . Robot Analysis 1 | . . . 1 . . . . . Prototype ID Bank 7 | . 3 2 1 1 . . . . Open Door 2 | . . . 2 . . . . . Branch Access Points 2 | . . 1 . 1 . . . . Emergency Access Points 3 | . 2 . . . . . 1 . Alert Level 7 | . 1 2 2 1 . . 1 . Unreport Threat 1 | . . . 1 . . . . . Locate Traps 1 | . 1 . . . . . . . Disarm Traps 2 | . . 2 . . . . . . Reprogram Traps 1 | . . 1 . . . . . . Reinforcement Status 1 | . . . . 1 . . . . Zone Layout 3 | . . 2 . . . . 1 . Fabricator Hacks 2 | . . . . . . . 2 . Load Schematic 1 | . . . . . . . 1 . Build 1 | . . . . . . . 1 . Repair Station Hacks 8 | . . . . 2 . . 6 . Scan Component 5 | . . . . 1 . . 4 . Repair 3 | . . . . 1 . . 2 . Recycling Unit Hacks . | . . . . . . . . . Scanalyzer 9 | . . 6 . . 1 . 2 . Insert Component 5 | . . 3 . . 1 . 1 . Analyze 4 | . . 3 . . . . 1 . Garrison Access Hacks 3 | . . . . 1 . . 2 . Unlock Access 1 | . . . . . . . 1 . Seal Access 2 | . . . . 1 . . 1 . Unauthorized Hacks . | . . . . . . . . . Terminals . | . . . . . . . . . Fabricators . | . . . . . . . . . Repair Stations . | . . . . . . . . . Recycling Units . | . . . . . . . . . Scanalyzers . | . . . . . . . . . Garrison Access . | . . . . . . . . . Data Cores Recovered . | . . . . . . . . . Used . | . . . . . . . . . Hacking Detections 42 | . 6 12 9 4 2 . 9 . Full Trace Events 5 | . 1 1 1 1 . . 1 . Feedback Events . | . . . . . . . . . Feedback Blocked . | . . . . . . . . . Robot Schematics Acquired . | . . . . . . . . . Robots Built . | . . . . . . . . . Matter . | . . . . . . . . . Time . | . . . . . . . . . Total Robot Build Rating . | . . . . . . . . . Part Schematics Acquired 12 | . . 5 5 . . . 2 . Parts Built 1 | . . . . . . . 1 . Matter 124 | . . . . . . . 124 . Time 62 | . . . . . . . 62 . Total Part Build Rating 2 | . . . . . . . 2 . Parts Repaired 3 | . . . . 1 . . 2 . Time 115 | . . . . 80 . . 35 . Parts Recycled . | . . . . . . . . . Recycled Matter . | . . . . . . . . . Retrieved Matter . | . . . . . . . . . Retrieved Components . | . . . . . . . . . Parts Scanalyzed 5 | . . 3 . . 1 . 1 . Part Schematics Acquired 4 | . . 3 . . . . 1 . Parts Damaged 1 | . . 1 . . . . . . Bothacking | -11 -10 -9 -9 -8 -7 -7 -7 -7 ------------ Run | Scr Mat Mat Sto Mat Fac Was Fac Gar Used RIF Installer 1 | . . . . . . . . 1 Robots Hacked . | . . . . . . . . . Non-combat . | . . . . . . . . . Combat . | . . . . . . . . . Robot Hacks Applied . | . . . . . . . . . Relay Couplers Released 3 | . . . . . . . 3 . Machine Destruction 3 | . . . . . . . 3 . Robots Rewired . | . . . . . . . . . Allies Hacked . | . . . . . . . . . Hacks Repelled . | . . . . . . . . . Allies | -11 -10 -9 -9 -8 -7 -7 -7 -7 -------- Run | Scr Mat Mat Sto Mat Fac Was Fac Gar Total Allies 3 | . . . . . . . 3 . Largest Group 3 | . . . . . . . 3 . Highest-Rated Group 93 | . . . . . . . 93 . Highest-Rated Ally 31 | . . . . . . . 31 . Total Orders . | . . . . . . . . . Ally Attacks 41 | . . . . . . . 41 . Total Damage 596 | . . . . . . . 596 . Kills 4 | . . . . . . . 4 . Allies Corrupted . | . . . . . . . . . Allies Melted . | . . . . . . . . . Intel | -11 -10 -9 -9 -8 -7 -7 -7 -7 ------- Run | Scr Mat Mat Sto Mat Fac Was Fac Gar Robot Analysis Total 1 | . . . 1 . . . . . Derelict Logs Recovered . | . . . . . . . . . Drone Launches 19 | . . . 16 3 . . . . Drone Recoveries 5 | . . . . 5 . . . . Exploration | -11 -10 -9 -9 -8 -7 -7 -7 -7 ------------- Run | Scr Mat Mat Sto Mat Fac Was Fac Gar Turns Passed 10308 | 86 1099 2767 1415 1453 192 161 2931 204 Spaces Moved 5562 | 52 744 1345 621 656 127 120 1798 99 Core 8 | 6 . . . . . . 2 . Treads . | . . . . . . . . . Legs 5554 | 46 744 1345 621 656 127 120 1796 99 Wheels . | . . . . . . . . . Hover . | . . . . . . . . . Flight . | . . . . . . . . . Fastest Speed 50 | 50 120 120 150 150 150 120 120 120 Average Speed 140 | 120 121 154 167 151 150 131 124 120 Slowest Speed 550 | 150 150 210 240 180 150 150 550 120 Overloaded Moves . | . . . . . . . . . Propulsion Burnouts . | . . . . . . . . . Robots Hopped . | . . . . . . . . . Cave-ins Triggered . | . . . . . . . . . Exploration Rate (%) 51 | 6 93 94 72 57 4 76 40 22 Regions Visited 8 Branch Regions 1 Pre-discovered Areas . | . . . . . . . . . Known Exits Taken 3 | . . 1 . 1 . . 1 . Unknown Exits Taken 3 | 1 1 . 1 . . . . . Scrap Searched . | . . . . . . . . . Spaces Dug 17 | . 17 . . . . . . . Terrain Destroyed 25 | . 25 . . . . . . . Melee . | . . . . . . . . . Projectile . | . . . . . . . . . AOE 25 | . 25 . . . . . . . Terrain Rammed . | . . . . . . . . . Walls Destroyed . | . . . . . . . . . Machines Disabled . | . . . . . . . . . Actions | -11 -10 -9 -9 -8 -7 -7 -7 -7 --------- Run | Scr Mat Mat Sto Mat Fac Was Fac Gar Total 7276 | 71 848 1834 893 954 131 124 2284 137 Wait 820 | . 16 277 99 173 . 4 246 5 Move 5555 | 51 743 1344 620 655 127 119 1797 99 Hop . | . . . . . . . . . Pick Up 171 | 12 19 40 34 15 2 . 46 3 Fast Attach . | . . . . . . . . . Attach 51 | 6 3 8 6 9 . 1 16 2 Detach 1 | . . . . . . . 1 . Swap 88 | . 6 26 16 4 . . 34 2 Drop 112 | . 12 30 31 7 2 . 28 2 Fire 237 | 2 49 59 . . . . 103 24 Melee 212 | . . 50 60 91 . . 11 . Ram . | . . . . . . . . . Kick . | . . . . . . . . . Crush . | . . . . . . . . . Escape Stasis 22 | . . . 20 . . . 2 . Rewire . | . . . . . . . . . Trap . | . . . . . . . . . Miscellaneous 7 | . . . 7 . . . . . Route ------- -11/Scrapyard -10/Materials (discovered 4 exits: *Mat x2 / [*Min x2]) -9/Materials (discovered 5 exits: *Mat x3 / *Min / *Sto) -9/Storage -8/Materials -7/Factory -7/Waste -7/Factory (discovered 4 exits: *Fac / *Low x2 / Gar) -7/Garrison History --------- Turn | Location | Event 14 | -11/Scrapyard | Discovered new exit (range 16) 87 | -11/Scrapyard | Entered Materials 138 | -10/Materials | Discovered new exit (range 11) 327 | -10/Materials | Build established: Mutant 480 | -10/Materials | Discovered new exit (range 9) 984 | -10/Materials | Discovered new exit (range 6) 1096 | -10/Materials | Discovered new exit (range 5) 1186 | -10/Materials | Entered another Materials area 1186 | -9/Materials | Evolved 2 slots: Utility x2 1556 | -9/Materials | Lost 3 parts (1n2w) 1600 | -9/Materials | Discovered new exit (range 5) 1739 | -9/Materials | Discovered new exit (range 16) 1837 | -9/Materials | Build established: Scavenger-Mutant 2499 | -9/Materials | Discovered new exit (range 3) 2509 | -9/Materials | Build established: Mutant 2637 | -9/Materials | Core integrity fell below 50% 2713 | -9/Materials | Identified exit to Mines 2713 | -9/Materials | Identified exit to Storage 3581 | -9/Materials | Discovered new exit (range 8) 3953 | -9/Materials | Entered Storage 4951 | -9/Storage | Discovered new exit (range 9) 5009 | -9/Storage | Core integrity fell below 20% 5368 | -9/Storage | Entered Materials 5368 | -8/Materials | Accompanied by 13 allies 5368 | -8/Materials | Evolved 2 slots: Propulsion x1, Utility x1 5563 | -8/Materials | Repaired Imp. Heavy Machine Gun 6282 | -8/Materials | Lost 3 parts (2n1u) 6761 | -8/Materials | Discovered new exit (range 16) 6820 | -8/Materials | Identified exit to Factory 6821 | -8/Materials | Entered Factory 6821 | -7/Factory | Evolved 2 slots: Propulsion x1, Utility x1 7013 | -7/Factory | Sucked down chute 7013 | -7/Factory | Entered Waste 7024 | -7/Waste | Spotted C-40 Crusher 7026 | -7/Waste | Spotted C-40 Crusher 7038 | -7/Waste | Spotted C-40 Crusher 7110 | -7/Waste | Spotted C-40 Crusher 7112 | -7/Waste | Spotted C-40 Crusher 7121 | -7/Waste | Crushed by Compactor (1 part destroyed, 1 dropped) 7122 | -7/Waste | Spotted C-40 Crusher 7124 | -7/Waste | Crushed by Compactor (1 part destroyed, 1 dropped) 7138 | -7/Waste | Crushed by Compactor (1 part destroyed, 1 dropped) 7152 | -7/Waste | Discovered new exit (range 15) 7169 | -7/Waste | Lost 4 parts (1p1n1u1w) 7173 | -7/Waste | Identified exit to Factory 7174 | -7/Waste | Entered Factory 7555 | -7/Factory | Discovered new exit (range 8) 7985 | -7/Factory | Identified exit to Lower Caves 8078 | -7/Factory | Repaired Imp. Carbon-fiber Leg 8355 | -7/Factory | Core integrity fell below 50% 9016 | -7/Factory | Discovered new exit (range 5) 9023 | -7/Factory | Identified exit to Factory 9115 | -7/Factory | Fabricated Imp. Sensor Array (x1) 9548 | -7/Factory | Repaired Med. Storage Unit 9611 | -7/Factory | Allied Derelicts emerged from ambush trap array 9956 | -7/Factory | Identified exit to Garrison 9980 | -7/Factory | Build established: Scavenger-Mutant 9984 | -7/Factory | Discovered exit to Lower Caves (range 10) 10035 | -7/Factory | Garrison activated, responded to threat 10105 | -7/Factory | Entered Garrison 10111 | -7/Garrison | Installed Relay Interface Framework 10174 | -7/Garrison | Triggered checkpoint 10177 | -7/Garrison | Triggered checkpoint 10185 | -7/Garrison | Core integrity fell below 20% 10237 | -7/Garrison | Destroyed 7 combat bots 10309 | -7/Garrison | Destroyed by S-27 Virus with Autogun Last Messages --------------- 10223_ Acquired Lgt. Nuclear Core. 10226_ Dropped Imp. Light Armor Plating. 10227_ Acquired 23 matter. 10229_ Dropped Lgt. Angular Momentum Engine. 10230_ Acquired 28 matter. 10232_ Acquired Lgt. Nuclear Core. 10240_ Acquired Imp. Heat Sink. 10268_ Acquired 42 matter. 10285_ S-27 Virus destroyed. 10285_ Switching to secondary target: S-27 Virus. 10285_ System corrupted: Flak Gun targeting data glitched. 10286_ Acquired 25 matter. 10288_ System corrupted: Flak Gun targeting data glitched. 10288_ S-27 Virus destroyed. 10290_ Flak Gun destroyed. 10296_ Imp. Carbon-fiber Leg destroyed. 10300_ Imp. Light Armor Plating destroyed. 10301_ Carbon-fiber Leg destroyed. 10302_ Imp. Carbon-fiber Leg severed. 10306_ L-41 Fighter destroyed. Map ----- +----------------------------------------------------+ | ?????????????????????????????????????????????????? | | ?????????????????????????????????????????????????? | | ?????????????????????????????????????????????????? | | ?????????????????????????????????????????????????? | | ?????????????????????????????????????????????????? | | ?????????????????????????????????????????????????? | | ??#####"""####???????????????????????????????????? | | ??# ????????????????????????????????????? | | ??# ????????????????????????????????????????? | | ??# #???????????????????????????????????????????? | | ??# #???????????????????????????????????????????? | | ??# #???????????????????????????????????????????? | | ### #####################???????????????????????? | | #???????????????????????? | | #???????????????????????? | | #???????????????????????? | | ###################### #???????????????????????? | | ?????????????????????# #???????????????????????? | | ?????????????????????# #???????????????????????? | | ?????????????????????# #???????????????????????? | | ?????????????????????# #?#####?????????????????? | | ?????????????????????#===#? #?????????????????? | | ?????????????????????# ## ## ##????????????? | | ?????????????????????#!*![! #????????????? | | ?????????????????????#%*=%!=[ #????????????? | | ?????????????????????#[%[@|%! #????????????? | | ?????????????????????#s=s##[= ## #????????????? | | ?????????????????????#*%[#? #??? #????????????? | | ???????????????????? ? ???????????????? | | ???????????????????# ?????????????? | | ???????????????????# "????????????? | | ???????????????????# "????????????? | | ???????????????????### ## ##^ #????????????? | | ?????????????????????# #? #? #????????????? | | ????????????????????? ? ?? ????????????? | | ????????????????????? ?? ??? ???????????? | | ?????????????????????# ?? ????????????????? | | ?????????????????????## #???""##????????????????? | | ??????????????????????? ????????????????????????? | | ??????????????????????? ????????????????????????? | | ??????????????????????? ????????????????????????? | | ?????????????????????????????????????????????????? | | ?????????????????????????????????????????????????? | | ?????????????????????????????????????????????????? | | ?????????????????????????????????????????????????? | | ?????????????????????????????????????????????????? | | ?????????????????????????????????????????????????? | | ?????????????????????????????????????????????????? | | ?????????????????????????????????????????????????? | | ?????????????????????????????????????????????????? | +----------------------------------------------------+ Best States ------------- Heat Dissipation 48 Energy Generation 18 Energy Capacity 290 Matter Stores 300 Matter Capacity 300 Sight Range 16 Robot Scan Range 13 Terrain Scan Range 16 Terrain Scan Density 10 Armor Coverage 675 Evasion (%) 40 Offensive Hacking 10 Item Schematics ----------------- ECM Suite | -9/Materials | Scanalyzed Med. Storage Unit | -9/Materials | Scanalyzed Hrd. Medium Armor Plating | -9/Materials | Scanalyzed Hrd. Light Armor Plating | -9/Materials | Hacked Imp. Aluminum Leg | -9/Materials | Hacked Imp. Signal Interpreter | -9/Storage | Hacked Imp. Sensor Array | -9/Storage | Hacked Imp. Medium Armor Plating | -9/Storage | Hacked Com. Matter Pod | -9/Storage | Hacked Adv. Targeting Computer | -9/Storage | Hacked Imp. Light Armor Plating | -7/Factory | Scanalyzed Imp. Carbon-fiber Leg | -7/Factory | Hacked Robot Schematics ------------------ None Fabricated ------------ Imp. Sensor Array | x1 | -7/Factory Alien Tech Used ----------------- None Achievements -------------- More Dakka Please Challenges ------------ None Game ------ Seed DefensePointShield Manual? 0 Play Time 01:48:36 Cumulative 57.9 hours Start 2021.03.25 @ 00:02:30 End 2021.03.28 @ 13:31:30 Sessions 17 Manual Loads 0 Difficulty Rogue Special Mode None Game No. 40 Rogue 40 Adventurer 0 Explorer 0 Win Type - Total 0 Types 0/0/0/0/0/0/0/0/0 Lore% 20 Gallery% 31 Achievement% 22 Wizard Run 0 Options --------- ASCII 0 Keyboard 0 Movement Mouse Keybinds 0 Fullscreen 2 Font 18/SmallcapsGlow Map View 76x50 Tactical HUD 1 Map Filters NONE Filters NONE Steam 1 RUN: 3719eba2-8f00-4b41-82da-21885a2a4776